[Event "KAZ Cup Women 2019"]
[Site "Almaty"]
[Date "2019.12.19"]
[Round "9.2"]
[White "Ankudinova, Yelena"]
[Black "Balabayeva, Xeniya"]
[Result "0-1"]
[ECO "A29"]
[WhiteElo "2093"]
[BlackElo "2119"]
[Annotator "ChessBase"]
[PlyCount "200"]
[EventDate "2019.12.12"]
[EventType "tourn"]
[EventCountry "KAZ"]
[SourceTitle "playchess.com"]
[Source "ChessBase"]
[SourceQuality "1"]
[TimeControl "40/5400+30:1800+30"]

1. c4 {[%emt 0:00:00]} e5 {[%emt 0:00:00]} 2. Nc3 {[%emt 0:00:00]} Nf6 {[%emt 0:00:00]} 3. Nf3 {[%emt 0:02:00]} Nc6 {[%emt 0:00:03]} 4. g3 d5 {[%emt 0:06:57]} 5. cxd5 {[%emt 0:00:31]} Nxd5 {[%emt 0:00:04]} 6. Bg2 {[%emt 0:00:08]} Be6 7. O-O {[%emt 0:12:35]} Be7 {[%emt 0:05:09]} 8. d3 {[%emt 0:06:10]} O-O {[%emt 0:03:16]} 9. Bd2 Qd7 {[%emt 0:18:32]} 10. a3 {[%emt 0:07:22]} f6 {[%emt 0:05:20]} 11. Rc1 {[%emt 0:16:28]} Nb6 {[%emt 0:04:21]} 12. Ne4 a5 13. Nc5 {[%emt 0:04:21]} Bxc5 {[%emt 0:00:38]} 14. Rxc5 {[%emt 0:00:07]} a4 {[%emt 0:00:17]} 15. Qc1 {[%emt 0:02:05]} Bd5 {[%emt 0:05:18]} 16. Ne1 Nd4 17. Bxd5+ {[%emt 0:11:52]} Nxd5 {[%emt 0:03:40]} 18. Qd1 {[%emt 0:00:20]} b6 {[%emt 0:01:59]} 19. Rc4 {[%emt 0:03:54]} b5 {[%emt 0:03:26]} 20. Rc1 {[%emt 0:00:24]} Nb3 {[%emt 0:00:19]} 21. Rc2 {[%emt 0:00:28]} c5 22. e3 Rad8 {[%emt 0:12:03]} 23. Qh5 {[%emt 0:10:02]} f5 {[%emt 0:03:43]} 24. Bc3 {[%emt 0:04:07]} Nxc3 {[%emt 0:01:24]} 25. bxc3 {[%emt 0:00:08]} e4 {[%emt 0:02:12]} 26. d4 {[%emt 0:00:31]} Rc8 {[%emt 0:05:25]} 27. Qd1 {[%emt 0:04:33]} Qd6 {[%emt 0:05:42]} 28. Ra2 Qd5 29. Rc2 {[%emt 0:02:11]} Qc4 {[%emt 0:10:14]} 30. f3 h6 31. Rff2 {[%emt 0:04:12]} Rce8 {[%emt 0:04:24]} 32. Qe2 {[%emt 0:02:17]} Na5 {[%emt 0:00:35]} 33. Rb2 {[%emt 0:00:29]} Rb8 {[%emt 0:00:36]} 34. fxe4 {[%emt 0:01:19]} fxe4 {[%emt 0:00:40]} 35. Rxf8+ {[%emt 0:01:05]} Rxf8 {[%emt 0:00:26]} 36. Kg2 {[%emt 0:03:04]} Rb8 {[%emt 0:00:43]} 37. Qc2 {[%emt 0:02:01]} Qd5 {[%emt 0:00:28]} 38. Rb1 {[%emt 0:01:17]} Nc4 {[%emt 0:00:15]} 39. Qc1 Qf5 40. Nc2 {[%emt 0:00:44]} Rf8 {[%emt 0:01:08]} 41. Qf1 {[%emt 0:30:48]} Qf3+ 42. Qxf3 {[%emt 0:00:00]} exf3+ {[%emt 0:00:45]} 43. Kf2 {[%emt 0:00:00]} Nd2 {[%emt 0:00:15]} 44. Rd1 {[%emt 0:00:00]} Ne4+ {[%emt 0:01:24]} 45. Kf1 {[%emt 0:00:00]} Rd8 {[%emt 0:03:27]} 46. Ne1 {[%emt 0:00:00]} Nxc3 {[%emt 0:06:51]} 47. Rc1 cxd4 {[%emt 0:08:58]} 48. Nxf3 {[%emt 0:00:00]} Nd5 {[%emt 0:07:07]} 49. exd4 {[%emt 0:00:00]} Ne3+ {[%emt 0:00:04]} 50. Ke2 {[%emt 0:00:00]} Nc4 {[%emt 0:00:04]} 51. Rc3 {[%emt 0:00:00]} Re8+ {[%emt 0:01:30]} 52. Ne5 {[%emt 0:00:18]} Re7 53. Kd3 {[%emt 0:01:00]} Nxe5+ {[%emt 0:01:52]} 54. dxe5 {[%emt 0:00:02]} Rxe5 {[%emt 0:00:06]} 55. Kd4 Rf5 56. Ke4 {[%emt 0:05:52]} Rf2 {[%emt 0:01:29]} 57. h3 {[%emt 0:00:16]} Rb2 {[%emt 0:00:33]} 58. Rf3 {[%emt 0:00:26]} b4 {[%emt 0:00:21]} 59. axb4 {[%emt 0:00:39]} Rxb4+ {[%emt 0:00:05]} 60. Kf5 {[%emt 0:01:32]} Rb3 {[%emt 0:00:12]} 61. Rf4 {[%emt 0:00:07]} Rxg3 {[%emt 0:00:15]} 62. h4 a3 {[%emt 0:00:26]} 63. Ra4 {[%emt 0:01:52]} Kh7 {[%emt 0:00:33]} 64. Kf4 {[%emt 0:00:39]} Rb3 {[%emt 0:00:27]} 65. h5 {[%emt 0:00:26]} Kg8 {[%emt 0:01:10]} 66. Ra7 {[%emt 0:00:33]} Kf8 {[%emt 0:00:28]} 67. Kf5 {[%emt 0:01:06]} Rg3 {[%emt 0:00:16]} 68. Ra8+ {[%emt 0:00:50]} Kf7 {[%emt 0:00:07]} 69. Ra7+ {[%emt 0:00:05]} Kg8 {[%emt 0:00:06]} 70. Kf4 {[%emt 0:00:46]} Rg5 {[%emt 0:00:06]} 71. Rxa3 {[%emt 0:00:08]} Rxh5 {[%emt 0:00:05]} 72. Kg4 {[%emt 0:00:04]} Rb5 {[%emt 0:00:05]} 73. Ra7 {[%emt 0:00:14]} Kh7 {[%emt 0:00:18]} 74. Rc7 {[%emt 0:00:10]} h5+ {[%emt 0:00:09]} 75. Kh4 {[%emt 0:00:09]} Kh6 {[%emt 0:00:14]} 76. Rc6+ {[%emt 0:00:15]} g6 {[%emt 0:00:08]} 77. Ra6 {[%emt 0:00:08]} Rb4+ {[%emt 0:00:15]} 78. Kg3 {[%emt 0:00:08]} h4+ {[%emt 0:00:07]} 79. Kh3 {[%emt 0:00:09]} Kh5 {[%emt 0:00:05]} 80. Ra5+ {[%emt 0:01:07]} g5 {[%emt 0:00:08]} 81. Rc5 {[%emt 0:00:13]} Rb3+ {[%emt 0:00:05]} 82. Kh2 {[%emt 0:00:10]} h3 {[%emt 0:00:32]} 83. Rc8 {[%emt 0:01:24]} Kh4 {[%emt 0:00:06]} 84. Rh8+ {[%emt 0:00:56]} Kg4 85. Ra8 {[%emt 0:00:11]} Rb2+ {[%emt 0:00:11]} 86. Kh1 {[%emt 0:00:11]} Rf2 87. Rg8 {[%emt 0:01:18]} Kh4 {[%emt 0:01:55]} 88. Kg1 {[%emt 0:00:25]} Ra2 {[%emt 0:01:29]} 89. Rb8 {[%emt 0:00:30]} g4 {[%emt 0:00:47]} 90. Rb4 {[%emt 0:00:55]} Re2 {[%emt 0:00:55]} 91. Ra4 {[%emt 0:01:30]} Kg3 {[%emt 0:00:28]} 92. Ra1 {[%emt 0:00:57]} Kf3 {[%emt 0:02:03]} 93. Rf1+ {[%emt 0:00:13]} Ke3 {[%emt 0:00:47]} 94. Ra1 {[%emt 0:00:02]} g3 {[%emt 0:00:23]} 95. Ra3+ {[%emt 0:00:26]} Kf4 {[%emt 0:00:15]} 96. Ra4+ {[%emt 0:00:00]} Re4 {[%emt 0:01:47]} 97. Ra1 g2 98. Kf2 {[%emt 0:01:54]} Kg4 {[%emt 0:00:55]} 99. Rb1 {[%emt 0:00:15]} Rf4+ {[%emt 0:00:09]} 100. Kg1 {[%emt 0:00:06]} Kg3 {[%emt 0:00:10]} 0-1